Cogmind - Beta 9 @@@ ROGUE MODE // 2019.10.22 @ 12:31:22 Player: BOBIT Result: Destroyed by H-55 Commando with Assault Rifle Performance ------------- Evolutions (2) 1000 Regions Visited (6) 1200 Robots Destroyed (21) 105 Value Destroyed (526) 526 Prototype IDs (6) 120 Alien Tech Used (0) 0 Bonus (0) 0 TOTAL SCORE: 2951 Bonus ------- None Cogmind --------- Core Integrity 0/550 Matter 300/300 Energy 99/100 System Corruption 5% Temperature Cool (27) Location -8/Storage Parts ------- Power (1) Propulsion (2) Utility (5) Weapon (3) Inventory (4) Recoil Stabilizer Transmission Jammer Light EM Pulse Cannon Peak State ------------ Power Nuclear Core Propulsion VTOL Module VTOL Module Utility Medium Storage Unit Visual Processing Unit Weapon Cycler Medium Armor Plating Hacking Suite Weapon Lightning Gun Gauss Rifle Datajack Inventory Ion Engine Armored Wheel Terrain Scanner Advanced Terrain Scan Processor Medium Armor Plating Shock Rifle Light EM Pulse Cannon Plasma Cannon [Rating: 29] Favorites ----------- Power Ion Engine Engine Ion Engine Power Core Nuclear Core Propulsion Compact Wheel Leg Carbon-fiber Leg Wheel Compact Wheel Hover Unit Hover Unit Flight Unit VTOL Module Utility Medium Armor Plating Device Weapon Cycler Storage Medium Storage Unit Processor Visual Processing Unit Hackware Hacking Suite Protection Medium Armor Plating Weapon Improved Light Cannon Energy Gun Lightning Gun Energy Cannon Light EM Pulse Cannon Ballistic Gun Gauss Rifle Ballistic Cannon Improved Light Cannon Impact Weapon Heavy Flail Special Melee Weapon Datajack Build | -11 -10 -10 -9 -9 -8 -8 ------- Run | Scr Mat Min Mat Min Mat Sto Slots Evolved 4 | . . . 2 . 2 . Power . | . . . . . . . Propulsion . | . . . . . . . Utility 3 | . . . 2 . 1 . Weapon 1 | . . . . . 1 . Parts Attached 57 | 6 11 . 11 2 12 15 Power 4 | 1 . . . . 2 1 Engine 1 | 1 . . . . . . Core 3 | . . . . . 2 1 Reactor . | . . . . . . . Propulsion 16 | 2 3 . 3 . 4 4 Treads . | . . . . . . . Leg 2 | . . . . . . 2 Wheel 11 | 2 2 . 3 . 2 2 Hover 1 | . 1 . . . . . Flight 2 | . . . . . 2 . Utility 18 | 1 3 . 5 . 4 5 Device 4 | . 1 . . . 1 2 Storage 3 | 1 . . 1 . 1 . Processor 2 | . . . 1 . . 1 Hackware 1 | . 1 . . . . . Protection 8 | . 1 . 3 . 2 2 Artifact . | . . . . . . . Weapon 19 | 2 5 . 3 2 2 5 Energy Gun 2 | . . . . . 1 1 Energy Cannon 5 | . . . 1 1 . 3 Ballistic Gun 4 | 2 . . 1 1 . . Ballistic Cannon 5 | . 4 . 1 . . . Launcher . | . . . . . . . Special Weapon . | . . . . . . . Impact Weapon 1 | . . . . . . 1 Slashing Weapon . | . . . . . . . Piercing Weapon . | . . . . . . . Special Melee Weapon 2 | . 1 . . . 1 . Unidentified Prototypes . | . . . . . . . Parts Lost 15 | . 1 . . . 6 8 Power 2 | . . . . . 1 1 Propulsion 3 | . . . . . 2 1 Utility 6 | . . . . . 2 4 Weapon 4 | . 1 . . . 1 2 Highest Loss Streak 6 | . 1 . . . 6 5 Average Slot Usage (%) 90 | . 98 100 99 98 92 58 Engine 7 | . 14 14 11 11 1 . Core 2 | . . . . . 6 6 Wheel 19 | . 27 28 22 22 15 6 Device 4 | . 2 . . . 9 9 Storage 5 | . 2 . 5 11 8 7 Processor 6 | . . . 11 11 7 7 Hackware 9 | . 9 14 11 11 9 5 Protection 11 | . 13 14 16 11 9 5 Energy Gun 2 | . . . . . 7 1 Energy Cannon 1 | . . . 1 9 . 4 Ballistic Gun 3 | . . . 3 11 7 . Ballistic Cannon 11 | . 23 28 16 . . . Special Melee Weapon 2 | . 3 . . . 7 . Naked Turns 37 | . . . . . . 37 Heaviest Build 40 | 12 24 20 28 31 40 24 Greatest Support 32 | 26 26 26 32 32 32 30 Greatest Overweight (x) 6 | 2 3 . 2 . 6 1 Average Overweight (x) . | . . . . . . . Largest Inventory Capacity 8 | 6 6 4 8 8 8 8 Average Capacity 6 | 5 4 4 5 8 7 7 Most Carried 8 | 6 6 3 8 8 8 6 Average Carried 4 | 3 3 3 4 7 7 2 Final Capacity 8 | . . . . . 8 4 Final Carried 8 | . . . . . 8 3 Class Distribution -------------------- 100% | Mutant Dominant Class ---------------- Mutant | -10/Materials Mutant | -10/Mines Mutant | -9/Materials Mutant | -9/Mines Mutant | -8/Materials Mutant | -8/Storage Resources | -11 -10 -10 -9 -9 -8 -8 ----------- Run | Scr Mat Min Mat Min Mat Sto Matter Collected 876 | 211 43 194 57 173 29 169 Remotely . | . . . . . . . Salvage Created 465 | . 58 46 57 93 . 211 Parts 48 | . 14 10 6 4 . 14 Haulers Intercepted . | . . . . . . . Recyclers Shooed . | . . . . . . . Parts Field Recycled . | . . . . . . . Retrieved Matter . | . . . . . . . Parts Self-Destructed . | . . . . . . . Prevented . | . . . . . . . Kills | -11 -10 -10 -9 -9 -8 -8 ------- Run | Scr Mat Min Mat Min Mat Sto Combat Hostiles Destroyed 13 | . 3 3 2 2 . 3 Melee 1 | . . . . . . 1 Cannons 9 | . 3 1 2 2 . 1 AOE 2 | . . 2 . . . . Classes Destroyed 9 | . 3 1 1 1 . 3 Worker 1 | . . . . . . 1 Builder 3 | . . 2 . . . 1 Operator 2 | . 1 . 1 . . . Watcher 2 | . 1 . 1 . . . Swarmer 6 | . 3 3 . . . . Grunt 3 | . . . 2 1 . . Brawler 1 | . . . . 1 . . Sentry 1 | . . . . . . 1 Hunter 2 | . . . . . . 2 Best Kill Streak 5 | . 4 5 2 2 . 3 Combat Bots Only 3 | . 3 3 2 2 . 2 Max Kills in Single Turn 4 | . 1 4 1 1 . 1 Gunslinging . | . . . . . . . Exploded 2 | . . 2 . . . . Melee 1 | . . . . . . 1 Uniques/NPCs Destroyed . | . . . . . . . Combat | -11 -10 -10 -9 -9 -8 -8 -------- Run | Scr Mat Min Mat Min Mat Sto Damage Taken 2337 | . 192 23 224 21 533 1344 Core 667 | . 58 . 49 . 14 546 Absorbed by Shields . | . . . . . . . Core Remaining (%) 87 | 100 . 76 . 87 . . Volleys Fired 46 | . 10 4 11 3 9 9 Largest 2 | . 2 2 2 2 2 2 Hottest 106 | . 78 78 78 79 83 106 Shots Fired 82 | . 18 8 22 6 18 10 Gun 23 | . . . 1 3 18 1 Cannon 59 | . 18 8 21 3 . 9 Launcher . | . . . . . . . Special . | . . . . . . . Kinetic 60 | . 18 8 22 3 9 . Thermal 8 | . . . . . . 8 Explosive . | . . . . . . . Electromagnetic 14 | . . . . 3 9 2 Robot Hit Streak 5 | . 4 1 5 1 4 5 Robot Miss Streak 3 | . 3 3 2 2 3 2 Penetration Max . | . . . . . . . Secondary Targets . | . . . . . . . Shots Hit Robots 51 | . 13 3 11 1 14 9 Core Hits 30 | . 5 6 5 2 1 11 Critical Hits . | . . . . . . . Critical Kills . | . . . . . . . Critical Parts Destroyed . | . . . . . . . Melee Attacks 14 | . 6 . . . 4 4 Impact 4 | . . . . . . 4 Slashing . | . . . . . . . Piercing . | . . . . . . . Sneak Attacks 8 | . 4 . . . 4 . Combat Hostiles . | . . . . . . . Follow-up Attacks . | . . . . . . . Damage Inflicted 1513 | . 235 340 310 59 205 364 Guns 255 | . . . 18 16 203 18 Cannons 772 | . 232 61 292 43 . 144 Explosions 345 | . . 279 . . . 66 Melee 73 | . . . . . . 73 Ramming 68 | . 3 . . . 2 63 Kinetic 714 | . 232 61 310 16 95 . Thermal 466 | . . 279 . . . 187 Explosive . | . . . . . . . Electromagnetic 192 | . . . . 43 108 41 Impact 73 | . . . . . . 73 Slashing . | . . . . . . . Piercing . | . . . . . . . Highest Corruption 5 | . . . . . . 5 Average Corruption 3 | . . . . . . 3 Corruption Purged . | . . . . . . . Effects 1 | . . . . . . 1 Message Errors 1 | . . . . . . 1 Overload Shots . | . . . . . . . Overflow Damage 72 | . . 7 . . . 65 Projectiles . | . . . . . . . Explosions 53 | . . 7 . . . 46 Melee 19 | . . . . . . 19 Knockbacks 5 | . 3 . 1 . . 1 Impact 1 | . . . . . . 1 Kinetic 4 | . 3 . 1 . . . Secondary . | . . . . . . . Self-Inflicted Damage 82 | . 1 . . . 1 80 Shots 1 | . . . . . . 1 Rammed 15 | . 1 . . . 1 13 Targets Rammed 15 | . 1 . . . 1 13 Kicked . | . . . . . . . Crushed . | . . . . . . . Highest Temperature 336 | . 179 108 336 80 99 202 Average Temperature 89 | . 79 55 143 45 45 88 Received Heat Transfer 678 | . 42 . 129 12 126 369 Siege Activations . | . . . . . . . Robots Corrupted 1 | . . . . . . 1 Combat Hostiles 1 | . . . . . . 1 Parts Fried 1 | . . . . . . 1 Impact Corruptions 1 | . . . . . . 1 Robots Melted . | . . . . . . . Combat Hostiles . | . . . . . . . Parts Melted 1 | . . 1 . . . . Heat Transferred 700 | . . 400 . . . 300 Parts Sabotaged . | . . . . . . . Parts Stolen . | . . . . . . . Parts Stripped . | . . . . . . . Power Chain Reactions 1 | . . . . . . 1 Missiles Intercepted . | . . . . . . . Alert | -11 -10 -10 -9 -9 -8 -8 ------- Run | Scr Mat Min Mat Min Mat Sto Peak Influence 230 | . 155 230 168 115 104 189 Average Influence 87 | . 50 170 138 96 77 78 Maximum Alert Level 1 | . . 1 . . . . Low Security (%) 96 | . . . . . . . Level 1 3 | . . . . . . . Level 2 . | . . . . . . . Level 3 . | . . . . . . . Level 4 . | . . . . . . . Level 5 . | . . . . . . . High Security . | . . . . . . . Max Security . | . . . . . . . Squads Dispatched 7 | . . . . 1 2 4 Investigation 2 | . . . . 1 1 . Extermination . | . . . . . . . Reinforcement 5 | . . . . . 1 4 Assault . | . . . . . . . Garrison . | . . . . . . . Intercept . | . . . . . . . Construction Impeded . | . . . . . . . Haulers Reinforced . | . . . . . . . Stealth | -11 -10 -10 -9 -9 -8 -8 --------- Run | Scr Mat Min Mat Min Mat Sto Distress Signals 2 | . . . . . 1 1 Communications Jammed . | . . . . . . . Distress Signals . | . . . . . . . Times Spotted 61 | . 10 2 4 4 13 28 Peak Tracking Total 18 | . 5 2 2 3 8 18 Tactical Retreats 5 | . 3 . . . 1 1 Traps | -11 -10 -10 -9 -9 -8 -8 ------- Run | Scr Mat Min Mat Min Mat Sto Traps Triggered 2 | . . . . . 1 1 Indirectly . | . . . . . . . Trap Hack Attempts . | . . . . . . . Triggered . | . . . . . . . Disarmed . | . . . . . . . Reprogrammed . | . . . . . . . Reused . | . . . . . . . Traps Extracted . | . . . . . . . Installed . | . . . . . . . Triggered . | . . . . . . . Machines | -11 -10 -10 -9 -9 -8 -8 ---------- Run | Scr Mat Min Mat Min Mat Sto Machines Disabled 8 | . 2 6 . . . . Max in Single Turn 6 | . 1 6 . . . . Machines Sabotaged . | . . . . . . . Garrisons Compromised . | . . . . . . . Overloaded Fab Kills . | . . . . . . . Fab Network Shutdowns . | . . . . . . . Hacking | -11 -10 -10 -9 -9 -8 -8 --------- Run | Scr Mat Min Mat Min Mat Sto Machines Accessed 10 | . 3 . 2 1 1 3 Terminals 7 | . 2 . 1 . 1 3 Fabricators . | . . . . . . . Repair Stations 1 | . . . 1 . . . Recycling Units 1 | . 1 . . . . . Scanalyzers . | . . . . . . . Garrison Access . | . . . . . . . Total Hacks 29 | . 13 . 4 1 3 8 Successful 23 | . 11 . 3 1 2 6 Failed 6 | . 2 . 1 . 1 2 Catastrophic . | . . . . . . . Database Lockouts . | . . . . . . . Manual . | . . . . . . . Terminals 23 | . 10 . 2 . 3 8 Fabricators . | . . . . . . . Repair Stations 2 | . . . 2 . . . Recycling Units 3 | . 3 . . . . . Scanalyzers . | . . . . . . . Garrison Access . | . . . . . . . Terminal Hacks 18 | . 8 . 1 1 2 6 Part Schematic 3 | . . . . . . 3 Prototype ID Bank 3 | . 2 . . . 1 . Open Door 2 | . . . . 1 . 1 Emergency Access Points 2 | . 1 . . . . 1 Alert Level 2 | . 2 . . . . . Dispatch Records 1 | . 1 . . . . . Maintenance Status 1 | . . . 1 . . . Patrol Status 1 | . 1 . . . . . Hauler Manifests 1 | . . . . . . 1 Registered Prototypes 1 | . 1 . . . . . Zone Layout 1 | . . . . . 1 . Fabricator Hacks . | . . . . . . . Repair Station Hacks 2 | . . . 2 . . . Scan Component 1 | . . . 1 . . . Repair 1 | . . . 1 . . . Recycling Unit Hacks 3 | . 3 . . . . . Process 1 | . 1 . . . . . Retrieve Matter 1 | . 1 . . . . . Retrieve Components 1 | . 1 . . . . . Scanalyzer . | . . . . . . . Garrison Access Hacks . | . . . . . . . Unauthorized Hacks . | . . . . . . . Terminals . | . . . . . . . Fabricators . | . . . . . . . Repair Stations . | . . . . . . . Recycling Units . | . . . . . . . Scanalyzers . | . . . . . . . Garrison Access . | . . . . . . . Data Cores Recovered 2 | . 1 . 1 . . . Used 2 | . 1 . 1 . . . Hacking Detections 8 | . 3 . 2 . 1 2 Full Trace Events 1 | . . . . . 1 . Feedback Events . | . . . . . . . Feedback Blocked . | . . . . . . . Robot Schematics Acquired . | . . . . . . . Robots Built . | . . . . . . . Matter . | . . . . . . . Time . | . . . . . . . Total Robot Build Rating . | . . . . . . . Part Schematics Acquired 3 | . . . . . . 3 Parts Built . | . . . . . . . Matter . | . . . . . . . Time . | . . . . . . . Total Part Build Rating . | . . . . . . . Parts Repaired 1 | . . . 1 . . . Time 32 | . . . 32 . . . Parts Recycled . | . . . . . . . Recycled Matter 16 | . 16 . . . . . Retrieved Matter 16 | . 16 . . . . . Retrieved Components . | . . . . . . . Parts Scanalyzed . | . . . . . . . Part Schematics Acquired . | . . . . . . . Parts Damaged . | . . . . . . . Bothacking | -11 -10 -10 -9 -9 -8 -8 ------------ Run | Scr Mat Min Mat Min Mat Sto Used RIF Installer . | . . . . . . . Robots Hacked 5 | . 3 . . . 2 . Non-combat 4 | . 2 . . . 2 . Combat 1 | . 1 . . . . . Robot Hacks Applied 7 | . 4 . . . 3 . parse_system 4 | . 3 . . . 1 . no_distress 1 | . . . . . 1 . find_recycling 1 | . 1 . . . . . check_alert 1 | . . . . . 1 . Relay Couplers Released . | . . . . . . . Robots Rewired . | . . . . . . . Allies Hacked . | . . . . . . . Hacks Repelled . | . . . . . . . Allies | -11 -10 -10 -9 -9 -8 -8 -------- Run | Scr Mat Min Mat Min Mat Sto Total Allies . | . . . . . . . Largest Group . | . . . . . . . Highest-Rated Group . | . . . . . . . Highest-Rated Ally . | . . . . . . . Total Orders . | . . . . . . . Ally Attacks . | . . . . . . . Total Damage . | . . . . . . . Kills . | . . . . . . . Allies Corrupted . | . . . . . . . Allies Melted . | . . . . . . . Intel | -11 -10 -10 -9 -9 -8 -8 ------- Run | Scr Mat Min Mat Min Mat Sto Robot Analysis Total . | . . . . . . . Derelict Logs Recovered . | . . . . . . . Drone Launches . | . . . . . . . Drone Recoveries . | . . . . . . . Exploration | -11 -10 -10 -9 -9 -8 -8 ------------- Run | Scr Mat Min Mat Min Mat Sto Turns Passed 1378 | 61 322 79 291 86 322 217 Spaces Moved 1046 | 51 272 71 216 67 218 151 Core 72 | 5 . . . . 4 63 Treads . | . . . . . . . Legs 8 | . . . . . . 8 Wheels 955 | 46 270 71 216 67 205 80 Hover 2 | . 2 . . . . . Flight 9 | . . . . . 9 . Fastest Speed 50 | 50 90 90 90 100 100 50 Average Speed 94 | 86 91 90 95 100 109 80 Slowest Speed 520 | 150 240 90 100 100 520 150 Overloaded Moves . | . . . . . . . Propulsion Burnouts . | . . . . . . . Robots Hopped . | . . . . . . . Cave-ins Triggered . | . . . . . . . Exploration Rate (%) 22 | 3 34 20 16 17 30 37 Regions Visited 6 Branch Regions 3 Pre-discovered Areas . | . . . . . . . Known Exits Taken . | . . . . . . . Unknown Exits Taken 6 | 1 1 1 1 1 1 . Scrap Searched . | . . . . . . . Spaces Dug . | . . . . . . . Terrain Destroyed 52 | . 1 38 2 . . 11 Melee . | . . . . . . . Projectile 6 | . 1 . 2 . . 3 AOE 46 | . . 38 . . . 8 Actions | -11 -10 -10 -9 -9 -8 -8 --------- Run | Scr Mat Min Mat Min Mat Sto Total 1345 | 64 327 77 281 82 286 228 Wait 82 | 2 . 3 23 2 21 31 Move 1041 | 50 271 70 215 66 218 151 Hop . | . . . . . . . Pick Up 35 | 6 9 . 8 4 6 2 Fast Attach 36 | 6 8 . 7 1 8 6 Attach 20 | . 3 . 4 1 3 9 Detach 14 | . 1 . 6 . 4 3 Swap 1 | . . . . . 1 . Drop 42 | . 18 . 7 5 12 . Fire 46 | . 10 4 11 3 9 9 Melee 14 | . 6 . . . 4 4 Ram 14 | . 1 . . . . 13 Kick . | . . . . . . . Crush . | . . . . . . . Escape Stasis . | . . . . . . . Rewire . | . . . . . . . Trap . | . . . . . . . Miscellaneous . | . . . . . . . Route ------- -11/Scrapyard -10/Materials (discovered 2 exits: *Mat / [*Min]) -10/Mines -9/Materials -9/Mines -8/Materials -8/Storage (discovered 1 exit: [*Fac]) History --------- Turn | Location | Event 17 | -11/Scrapyard | Discovered new exit (range 16) 62 | -11/Scrapyard | Entered Materials 311 | -10/Materials | Discovered new exit (range 10) 315 | -10/Materials | Build established: Mutant 332 | -10/Materials | Discovered new exit (range 14) 384 | -10/Materials | Entered Mines 426 | -10/Mines | Discovered new exit (range 16) 446 | -10/Mines | Assembled infested the area 451 | -10/Mines | Assisted by a Guerilla fighting off Assembled 463 | -10/Mines | Entered Materials 463 | -9/Materials | Evolved 2 slots: Utility x2 569 | -9/Materials | Repaired Med. Armor Plating 675 | -9/Materials | Discovered new exit (range 16) 754 | -9/Materials | Entered Mines 770 | -9/Mines | Met a Derelict bent on vengeance 772 | -9/Mines | Discovered new exit (range 8) 775 | -9/Mines | Met a Derelict shopkeep closing up shop 840 | -9/Mines | Entered Materials 840 | -8/Materials | Evolved 2 slots: Utility x1, Weapon x1 1148 | -8/Materials | Discovered new exit (range 8) 1162 | -8/Materials | Entered Storage 1191 | -8/Storage | Lost 6 parts (1p2n2u1w) 1330 | -8/Storage | Released all parts (7) 1348 | -8/Storage | Core integrity fell below 50% 1372 | -8/Storage | Discovered new exit (range 16) 1373 | -8/Storage | Lost 5 parts (1p3u1w) 1375 | -8/Storage | Core integrity fell below 20% 1379 | -8/Storage | Destroyed by H-55 Commando with Assault Rifle Last Messages --------------- A-02 Transporter 6x Imp. Ion Engine A-02 Transporter 3x Integration Mediator A-02 Transporter 3x Adv. Beam Cannon (1 escort) 01368_ W-25 Informer sends out distress signal. 01369_ O-16 Technician: "IFF HANDSHAKE FAILED. SECURING TERMINAL." 01370_ Penetrated by Slug. 01372_ EXIT=FOUND 01375_ =CRRQF3LDNZIR4,A1#GUXYM>XRLHHO5IFO RPZ 01377_ Slammed into A-02 Transporter. 01378_ Arm. Wheel destroyed. 01378_ ALERT: Hostiles spotted, dispatching reinforcements to Terminal S015. 01378_ Slammed into A-02 Transporter. 01379_ K-01 Serf destroyed. 01379_ Penetrated by Slug. [Achievement: Back For More] Map ----- +----------------------------------------------------+ | | | | | | | | | | | | | | | | | | | ???????????????????????????????? | | ???????????????????????????????? | | ???????????????????????????????? | | ???????????????????????????????? | | ???????????????????????????????? | | ???????????????????????????????? | | ???????????????????????????????? | | ?????????????????????????####??? | | ????????????????????????#g #??? | | ????????????????????????# < #??? | | ????????????????????????#gg #??? | | ????????????????????????# #??? | | ????????????????????????# #??? | | ????????????????????????Y^ #??? | | ????????????????????????#h #??? | | ????????????????????????# #??? | | ????????????????????????#@g #??? | | ?????+##+??????????????##%g ##?? | | ????# ??????????????# #?? | | ????# ????????????### ga #?? | | ????# ????????????#T# ! #?? | | ????# ????????????" oY% #?? | | ????# ?????????#[[ # g #?? | | ????# ?????????#[[" ## ##?? | | ????# #????????##?#??# #??? | | ????# #??????????????# #??? | | ????# #??????????????# #??? | | ????# #??????????????# #??? | | ????# #??????###??#### #??? | | ????# ########T####T## #??? | | ????# g #??? | | ????+ g #??? | | ????# % #??? | | ????#####+############### #??? | | ????# #?????????# #??? | | ????## """%=#?????????# #??? | | ?????# """* #?????????# #??? | | ?????# "" #?????????# #??? | | ?????# = #?????????? #??? | | ?????# """" #?????????? #??? | | ?????# """%"#?????????? #??? | +----------------------------------------------------+ Best States ------------- Heat Dissipation 31 Energy Generation 14 Energy Capacity 250 Matter Stores 300 Matter Capacity 300 Sight Range 18 Robot Scan Range 10 Terrain Scan Range 14 Terrain Scan Density 210 Jamming Range 8 Armor Coverage 450 Weapon Cycling 15 Evasion (%) 50 Offensive Hacking 10 Item Schematics ----------------- Remote Datajack | -8/Storage | Hacked Minigun | -8/Storage | Hacked Matter Compressor | -8/Storage | Hacked Robot Schematics ------------------ None Fabricated ------------ Nothing Alien Tech Used ----------------- None Achievements -------------- Back For More Dynamic Key Challenges ------------ None Game ------ Seed ColdCentriumWand Manual? 0 Play Time 00:33:03 Cumulative 21.4 hours Start 2019.10.22 @ 11:58:28 End 2019.10.22 @ 12:31:22 Sessions 1 Manual Loads 0 Difficulty Rogue Special Mode None Game No. 50 Rogue 50 Adventurer 0 Explorer 0 Win Type - Total 0 Types 0/0/0/0/0/0/0 Lore% 16 Gallery% 32 Achievement% 22 Wizard Run 0 Options --------- ASCII 1 Keyboard 1 Movement Numpad Keybinds 0 Fullscreen 2 Font 18/TerminusBold Map View 76x50 Tactical HUD 1 Map Filters NONE Filters NONE Steam 1 RUN: dc6fe75f-f966-42b3-95f6-9eadca542789